fUST/lending_fUST_20240818
["ID","MTS","AMOUNT","RATE_DAILY","PERIOD"]
[335193150,1723968639770,-508.35649694,0.00018701,2]
[335193151,1723968639780,-1421.03,0.00018701,2]
[335193152,1723968639790,-500.0,0.00018701,2]
[335193153,1723968639799,-779.41,0.00018701,2]
[335193154,1723968639808,-500.0,0.00018701,2]
[335193155,1723968639818,-500.0,0.00018701,2]
[335193156,1723968639827,-500.8022216,0.00018701,2]
[335193157,1723968639837,-500.0,0.00018701,2]
[335193158,1723968639846,-1114.52,0.00018701,2]
[335193159,1723968639855,-740.26,0.00018701,2]
[335193160,1723968639865,-512.08654274,0.00018701,2]
[335193161,1723968639874,-507.94942842,0.00018701,2]
[335193163,1723968639883,-500.0,0.00018701,2]
[335193165,1723968639892,-500.0,0.00018701,2]
[335193166,1723968639901,-500.0,0.00018701,2]
[335193168,1723968639911,-500.0,0.00018701,2]
[335193170,1723968639921,-552.58696288,0.00018701,2]
[335193171,1723968639930,-545.45,0.00018701,2]
[335193173,1723968639939,-690.3,0.00018701,2]
[335193175,1723968639948,-517.7936347,0.00018701,2]
[335193177,1723968639957,-500.0,0.00018701,2]
[335193179,1723968639967,-781.51,0.00018701,2]
[335193181,1723968639978,-503.5090464,0.00018701,2]
[335193183,1723968639987,-644.57777291,0.00018701,2]
[335193185,1723968639997,-500.0,0.00018701,2]
[335193186,1723968640006,-500.0,0.00018701,2]
[335193187,1723968640017,-857.87,0.00018701,2]
[335193188,1723968640026,-500.0,0.00018701,2]
[335193189,1723968640035,-500.0,0.00018701,2]
[335193190,1723968640045,-522.86101654,0.00018701,2]
[335193191,1723968640054,-500.0,0.00018701,2]
[335193192,1723968640064,-691.11,0.00018701,2]
[335193193,1723968640074,-746.6,0.00018701,2]
[335193194,1723968640083,-500.0,0.00018701,2]
[335193195,1723968640092,-287.4643648,0.00018701,2]
[335193196,1723968640102,-500.0,0.00018701,2]
[335193197,1723968640111,-502.20372437,0.00018701,2]
[335193198,1723968640120,-314.10509722,0.00018701,2]
[335193199,1723968640129,-500.0,0.00018701,2]
[335193200,1723968640139,-500.0,0.00018701,2]
[335193201,1723968640148,-521.18586828,0.00018701,2]
[335193202,1723968640157,-571.46,0.00018701,2]
[335193203,1723968640167,-500.0,0.00018701,2]
[335193204,1723968640176,-648.03,0.00018701,2]
[335193205,1723968640185,-697.68,0.00018701,2]
[335193206,1723968640194,-500.0,0.00018701,2]
[335193207,1723968640204,-500.0,0.00018701,2]
[335193209,1723968640213,-500.0,0.00018701,2]
[335193211,1723968640223,-500.0,0.00018701,2]
[335193213,1723968640232,-500.0,0.00018701,2]
[335193215,1723968640241,-827.5,0.00018701,2]
[335193216,1723968640250,-500.0,0.00018701,2]
[335193217,1723968640260,-511.45949116,0.00018701,2]
[335193218,1723968640269,-500.0,0.00018701,2]
[335193219,1723968640278,-515.55398603,0.00018701,2]
[335193220,1723968640288,-500.0,0.00018701,2]
[335193221,1723968640297,-500.0,0.00018701,2]
[335193222,1723968640306,-500.0,0.00018701,2]
[335193223,1723968640315,-500.0,0.00018701,2]
[335193224,1723968640324,-500.0,0.00018701,2]
[335193225,1723968640334,-500.0,0.00018701,2]
[335193226,1723968640343,-500.0,0.00018701,2]
[335193227,1723968640352,-500.0,0.00018701,2]
[335193228,1723968640362,-530.53,0.00018701,2]
[335193229,1723968640372,-596.88,0.00018701,2]
[335193230,1723968640381,-426.90354338,0.00018701,2]
[335193231,1723968640391,-500.0,0.00018701,2]
[335193232,1723968640400,-513.22647486,0.00018701,2]
[335193233,1723968640409,-500.0,0.00018701,2]
[335193234,1723968640525,-500.0,0.00018701,2]
[335193235,1723968640535,-500.0,0.00018701,2]
[335193236,1723968640544,-530.35646287,0.00018701,2]
[335193237,1723968640554,-552.04,0.00018701,2]
[335193238,1723968640563,-908.55,0.00018701,2]
[335193239,1723968640572,-500.0,0.00018701,2]
[335193240,1723968640582,-495.78922425,0.00018701,2]
[335193241,1723968640592,-500.0,0.00018701,2]
[335193242,1723968640601,-500.0,0.00018701,2]
[335193243,1723968640611,-500.0,0.00018701,2]
[335193244,1723968640620,-516.15,0.00018701,2]
[335193245,1723968640630,-500.0,0.00018701,2]
[335193246,1723968640639,-500.0,0.00018701,2]
[335193247,1723968640648,-500.0,0.00018701,2]
[335193248,1723968640658,-500.0,0.00018701,2]
[335193249,1723968640667,-500.0,0.00018701,2]
[335193250,1723968640677,-500.0,0.00018701,2]
[335193251,1723968640686,-666.21,0.00018701,2]
[335193252,1723968640695,-500.0,0.00018701,2]
[335193253,1723968640704,-977.9,0.00018701,2]
[335193254,1723968640713,-648.23834614,0.00018701,2]
[335193255,1723968640723,-500.0,0.00018701,2]
[335193256,1723968640732,-500.0,0.00018701,2]
[335193257,1723968640741,-500.0,0.00018701,2]
[335193258,1723968640750,-1000.0,0.00018701,2]
[335193259,1723968640760,-500.0,0.00018701,2]
[335193260,1723968640769,-500.0,0.00018701,2]
[335193261,1723968640778,-500.0,0.00018701,2]
[335193262,1723968640788,-506.70627482,0.00018701,2]
[335193263,1723968640798,-500.0,0.00018701,2]
[335193264,1723968640807,-500.0,0.00018701,2]
[335193265,1723968640816,-500.0,0.00018701,2]
[335193266,1723968640826,-500.0,0.00018701,2]
[335193267,1723968640835,-500.0,0.00018701,2]
[335193268,1723968640845,-500.0,0.00018701,2]
[335193269,1723968640854,-500.0,0.00018701,2]
[335193270,1723968640863,-632.06211442,0.00018701,2]
[335193271,1723968640872,-500.0,0.00018701,2]
[335193272,1723968640883,-503.20444403,0.00018701,2]
[335193273,1723968640892,-500.0,0.00018701,2]
[335193274,1723968640902,-502.34132061,0.00018701,2]
[335193275,1723968640911,-741.84,0.00018701,2]
[335193276,1723968640920,-500.0,0.00018701,2]
[335193277,1723968640929,-819.08,0.00018701,2]
[335193278,1723968640939,-500.0,0.00018701,2]
[335193279,1723968640948,-500.0,0.00018701,2]
[335193280,1723968640957,-4418.73,0.00018701,2]
[335193281,1723968640967,-527.1813794,0.00018701,2]
[335193282,1723968640978,-500.0,0.00018701,2]
[335193283,1723968640987,-502.12800461,0.00018701,2]
[335193284,1723968640997,-500.0,0.00018701,2]
[335193285,1723968641006,-500.0,0.00018701,2]
[335193286,1723968641016,-500.65763525,0.00018701,2]
[335193287,1723968641024,-500.0,0.00018701,2]
[335193288,1723968641033,-500.0,0.00018701,2]
[335193289,1723968641043,-500.0,0.00018701,2]
[335193290,1723968641052,-1432.95,0.00018701,2]
[335193291,1723968641061,-500.0,0.00018701,2]
[335193292,1723968641070,-500.0,0.00018701,2]
[335193293,1723968641079,-500.0,0.00018701,2]
[335193294,1723968641089,-543.15,0.00018701,2]
[335193295,1723968641098,-501.64080858,0.00018701,2]
[335193296,1723968641107,-500.0,0.00018701,2]
[335193297,1723968641116,-500.0,0.00018701,2]
[335193298,1723968641125,-500.0,0.00018701,2]
[335193299,1723968641136,-500.0,0.00018701,2]
[335193300,1723968641145,-500.0,0.00018701,2]
[335193301,1723968641154,-500.0,0.00018701,2]
[335193302,1723968641164,-500.0,0.00018701,2]
[335193303,1723968641173,-500.0,0.00018701,2]
[335193304,1723968641182,-500.0,0.00018701,2]
[335193305,1723968641192,-500.0,0.00018701,2]
[335193306,1723968641201,-711.8,0.00018701,2]
[335193307,1723968641211,-500.0,0.00018701,2]
[335193308,1723968641220,-500.96333795,0.00018701,2]
[335193309,1723968641229,-712.42,0.00018701,2]
[335193310,1723968641239,-500.0,0.00018701,2]
[335193311,1723968641248,-500.0,0.00018701,2]
[335193312,1723968641258,-500.0,0.00018701,2]
[335193313,1723968641267,-515.62,0.00018701,2]
[335193314,1723968641276,-500.0,0.00018701,2]
[335193315,1723968641285,-505.45642932,0.00018701,2]
[335193316,1723968641295,-500.0,0.00018701,2]
[335193317,1723968641305,-500.0,0.00018701,2]
[335193318,1723968641314,-514.47,0.00018701,2]
[335193319,1723968641324,-500.0,0.00018701,2]
[335193320,1723968641334,-537.08453408,0.00018701,2]
[335193321,1723968641343,-500.0,0.00018701,2]
[335193322,1723968641352,-500.0,0.00018701,2]
[335193323,1723968641361,-500.0,0.00018701,2]
[335193324,1723968641371,-1455.28,0.00018701,2]
[335193325,1723968641381,-500.0,0.00018701,2]
[335193326,1723968641390,-502.03791934,0.00018701,2]
[335193327,1723968641400,-500.0,0.00018701,2]
[335193328,1723968641410,-500.0,0.00018701,2]
[335193329,1723968641419,-500.0,0.00018701,2]
[335193330,1723968641428,-508.1059402,0.00018701,2]
[335193331,1723968641439,-500.0,0.00018701,2]
[335193332,1723968641448,-644.77,0.00018701,2]
[335193333,1723968641458,-435.9610758,0.00018701,2]
[335193334,1723968641467,-500.0,0.00018701,2]
[335193335,1723968641477,-500.0,0.00018701,2]
[335193336,1723968641486,-500.0,0.00018701,2]
[335193337,1723968641496,-515.17274686,0.00018701,2]
[335193338,1723968641505,-500.0,0.00018701,2]
[335193339,1723968641514,-388.24660019,0.00018701,2]
[335193340,1723968641524,-500.0,0.00018701,2]
[335193341,1723968641534,-500.0,0.00018701,2]
[335193342,1723968641543,-500.0,0.00018701,2]
[335193343,1723968641553,-520.14077379,0.00018701,2]
[335193344,1723968641562,-702.81,0.00018701,2]
[335193345,1723968641572,-500.0,0.00018701,2]
[335193346,1723968641581,-825.96,0.00018701,2]
[335193347,1723968641590,-500.0,0.00018701,2]
[335193348,1723968641599,-500.0,0.00018701,2]
[335193349,1723968641609,-504.50137407,0.00018701,2]
[335193350,1723968641618,-500.0,0.00018701,2]
[335193351,1723968641628,-500.0,0.00018701,2]
[335193352,1723968641645,-683.24,0.00018701,2]
[335193353,1723968641655,-2320.16,0.00018701,2]
[335193354,1723968641665,-500.0,0.00018701,2]
[335193355,1723968641674,-500.0,0.00018701,2]
[335193356,1723968641684,-500.0,0.00018701,2]
[335193357,1723968641693,-500.0,0.00018701,2]
[335193358,1723968641703,-618.44567563,0.00018701,2]
[335193359,1723968641712,-3465.12,0.00018701,2]
[335193360,1723968641723,-509.60882877,0.00018701,2]
[335193361,1723968641732,-994.5,0.00018701,2]
[335193362,1723968641741,-500.0,0.00018701,2]
[335193363,1723968641751,-500.0,0.00018701,2]
[335193364,1723968641760,-500.0,0.00018701,2]
[335193365,1723968641769,-500.0,0.00018701,2]
[335193366,1723968641779,-501.4158508,0.00018701,2]
[335193367,1723968641789,-500.0,0.00018701,2]
[335193368,1723968641798,-500.0,0.00018701,2]
[335193369,1723968641807,-500.0,0.00018701,2]
[335193370,1723968641816,-957.5,0.00018701,2]
[335193371,1723968641826,-500.0,0.00018701,2]
[335193372,1723968641836,-500.0,0.00018701,2]
[335193373,1723968641845,-500.0,0.00018701,2]
[335193374,1723968641855,-500.0,0.00018701,2]
[335193375,1723968641864,-500.0,0.00018701,2]
[335193376,1723968641873,-1234.36,0.00018701,2]
[335193377,1723968641883,-500.0,0.00018701,2]
[335193378,1723968641892,-950.77,0.00018701,2]
[335193379,1723968641902,-500.0,0.00018701,2]
[335193380,1723968641912,-500.0,0.00018701,2]
[335193381,1723968641921,-500.0,0.00018701,2]
[335193382,1723968641930,-502.26264093,0.00018701,2]
[335193383,1723968641940,-500.0,0.00018701,2]
[335193384,1723968641949,-500.0,0.00018701,2]
[335193385,1723968641959,-597.15331556,0.00018701,2]
[335193386,1723968641969,-500.0,0.00018701,2]
[335193387,1723968641980,-500.0,0.00018701,2]
[335193388,1723968641989,-500.0,0.00018701,2]
[335193389,1723968641999,-500.0,0.00018701,2]
[335193390,1723968642008,-500.0,0.00018701,2]
[335193391,1723968642018,-500.0,0.00018701,2]
[335193392,1723968642027,-500.0,0.00018701,2]
[335193393,1723968642037,-500.0,0.00018701,2]
[335193394,1723968642048,-543.53104022,0.00018701,2]
[335193395,1723968642057,-506.69120468,0.00018701,2]
[335193396,1723968642068,-1056.73,0.00018701,2]
[335193397,1723968642078,-500.0,0.00018701,2]
[335193398,1723968642088,-500.0,0.00018701,2]
[335193399,1723968642097,-500.0,0.00018701,2]
[335193400,1723968642107,-730.8,0.00018701,2]
[335193401,1723968642116,-1053.09,0.00018701,2]
[335193402,1723968642127,-501.47494704,0.00018701,2]
[335193403,1723968642137,-500.0,0.00018701,2]
[335193404,1723968642147,-650.81,0.00018701,2]
[335193405,1723968642157,-500.0,0.00018701,2]
[335193406,1723968642166,-500.0,0.00018701,2]
[335193407,1723968642175,-651.53,0.00018701,2]
[335193408,1723968642185,-500.0,0.00018701,2]
[335193409,1723968642195,-500.0,0.00018701,2]
[335193410,1723968642204,-2211.05,0.00018701,2]
[335193411,1723968642214,-500.0,0.00018701,2]
[335193412,1723968642224,-500.0,0.00018701,2]
[335193413,1723968642233,-500.0,0.00018701,2]
[335193414,1723968642243,-907.0,0.00018701,2]
[335193415,1723968642252,-500.0,0.00018701,2]
[335193416,1723968642261,-500.0,0.00018701,2]
[335193417,1723968642271,-203.93556017,0.00018701,2]
[335193418,1723968642280,-500.0,0.00018701,2]
[335193419,1723968642290,-500.0,0.00018701,2]
[335193420,1723968642299,-726.36,0.00018701,2]
[335193421,1723968642309,-500.0,0.00018701,2]
[335193422,1723968642318,-500.0,0.00018701,2]
[335193424,1723968642328,-500.0,0.00018701,2]
[335193425,1723968642337,-693.92,0.00018701,2]
[335193426,1723968642346,-500.0,0.00018701,2]
[335193427,1723968642355,-524.49331253,0.00018701,2]
[335193428,1723968642364,-780.01,0.00018701,2]
[335193429,1723968642374,-500.0,0.00018701,2]
[335193430,1723968642385,-500.0,0.00018701,2]
[335193431,1723968642395,-819.97,0.00018701,2]
[335193432,1723968642404,-506.2734219,0.00018701,2]
[335193433,1723968642414,-505.68544623,0.00018701,2]
[335193434,1723968642423,-500.0,0.00018701,2]
[335193435,1723968642433,-500.0,0.00018701,2]
[335193436,1723968642442,-500.0,0.00018702,2]
[335193437,1723968642451,-4418.73,0.00018702,2]
[335193438,1723968642461,-4418.73,0.00018702,2]
[335193439,1723968642471,-589.17209979,0.00018702,2]
[335193440,1723968642480,-500.0,0.00018702,2]
[335193443,1723968642490,-500.0,0.00018702,2]
[335193446,1723968642499,-500.0,0.00018702,2]
[335193448,1723968642509,-845.2,0.00018703,2]
[335193450,1723968642519,-500.0,0.00018703,2]
[335193452,1723968642528,-1109.69,0.00018703,2]
[335193454,1723968642538,-500.0,0.00018703,2]
[335193456,1723968642548,-500.0,0.00018703,2]
[335193458,1723968642558,-547.91,0.00018703,2]
[335193459,1723968642568,-500.0,0.00018703,2]
[335193460,1723968642578,-1074.18,0.00018703,2]
[335193461,1723968642702,-500.0,0.00018703,2]
[335193462,1723968642712,-691.19,0.00018703,2]
[335193463,1723968642722,-712.99,0.00018703,2]
[335193464,1723968642733,-500.0,0.00018703,2]
[335193465,1723968642743,-500.0,0.00018703,2]
[335193466,1723968642754,-500.0,0.00018703,2]
[335193467,1723968642763,-500.0,0.00018703,2]
[335193468,1723968642774,-500.0,0.00018703,2]
[335193469,1723968642784,-500.0,0.00018703,2]
[335193470,1723968642794,-500.0,0.00018703,2]
[335193471,1723968642804,-512.21931857,0.00018703,2]
[335193472,1723968642814,-500.0,0.00018703,2]
[335193473,1723968642824,-732.53,0.00018703,2]
[335193474,1723968642834,-893.58,0.00018703,2]
[335193475,1723968642844,-500.0,0.00018703,2]
[335193476,1723968642854,-500.0,0.00018703,2]
[335193477,1723968642863,-500.0,0.00018703,2]
[335193478,1723968642872,-500.0,0.00018703,2]
[335193479,1723968642882,-803.49,0.00018703,2]
[335193480,1723968642892,-500.0,0.00018703,2]
[335193481,1723968642902,-500.0,0.00018703,2]
[335193482,1723968642912,-500.0,0.00018703,2]
[335193483,1723968642922,-500.0,0.00018703,2]
[335193484,1723968642931,-500.0,0.00018703,2]
[335193485,1723968642941,-500.0,0.00018703,2]
[335193486,1723968642950,-500.0,0.00018703,2]
[335193487,1723968642960,-500.0,0.00018703,2]
[335193488,1723968642971,-500.0,0.00018703,2]
[335193489,1723968642981,-586.45,0.00018703,2]
[335193490,1723968642990,-500.0,0.00018703,2]
[335193491,1723968643000,-811.34,0.00018703,2]
[335193492,1723968643009,-500.0,0.00018703,2]
[335193493,1723968643018,-798.48,0.00018703,2]
[335193494,1723968643027,-500.0,0.00018703,2]
[335193495,1723968643037,-500.0,0.00018703,2]
[335193496,1723968643046,-500.0,0.00018703,2]
[335193497,1723968643056,-500.0,0.00018703,2]
[335193498,1723968643065,-531.34,0.00018703,2]
[335193499,1723968643074,-500.0,0.00018703,2]
[335193500,1723968643083,-500.0,0.00018703,2]
[335193501,1723968643092,-500.0,0.00018703,2]
[335193502,1723968643101,-545.85,0.00018703,2]
[335193503,1723968643110,-653.14,0.00018703,2]
[335193504,1723968643119,-500.0,0.00018703,2]
[335193505,1723968643129,-1340.45,0.00018703,2]
[335193506,1723968643139,-1076.19,0.00018703,2]
[335193507,1723968643148,-500.0,0.00018703,2]
[335193508,1723968643157,-500.0,0.00018703,2]
[335193509,1723968643166,-500.0,0.00018703,2]
[335193510,1723968643175,-500.0,0.00018703,2]
[335193511,1723968643184,-153.0,0.00018712,2]
[335193512,1723968643193,-153.0,0.00018712,2]
[335193513,1723968643202,-153.0,0.00018712,2]
[335193514,1723968643211,-153.0,0.00018712,2]
[335193515,1723968643220,-153.0,0.00018712,2]
[335193516,1723968643229,-153.0,0.00018712,2]
[335193517,1723968643237,-153.0,0.00018712,2]
[335193518,1723968643247,-153.0,0.00018712,2]
[335193519,1723968643256,-153.0,0.00018712,2]
[335193520,1723968643265,-153.0,0.00018712,2]
[335193521,1723968643275,-4642.1640285,0.00018737,2]
[335193522,1723968643284,-4418.73,0.00018755,2]
[335193523,1723968643293,-4418.73,0.00018756,2]
[335193524,1723968643302,-500.0,0.00018757,2]
[335193525,1723968643311,-500.0,0.00018766,2]
[335193526,1723968643320,-500.0,0.00018766,2]
[335193527,1723968643329,-500.0,0.00018766,2]
[335193528,1723968643338,-4418.73,0.00018766,2]
[335193529,1723968643347,-4418.73,0.00018766,2]
[335193530,1723968643357,-4418.73,0.00018766,2]
[335193531,1723968643366,-4418.73,0.00018766,2]
[335193532,1723968643375,-305.87672062,0.00018766,2]
[335193533,1723968643386,-515.79324204,0.00018766,2]
[335193534,1723968643396,-500.0,0.00018767,2]
[335193535,1723968643405,-500.0,0.00018767,2]
[335193536,1723968643414,-500.0,0.00018767,2]
[335193537,1723968643423,-500.0,0.00018767,2]
[335193538,1723968643433,-500.0,0.00018767,2]
[335193539,1723968643443,-500.0,0.00018767,2]
[335193540,1723968643452,-500.0,0.00018767,2]
[335193541,1723968643461,-500.0,0.00018767,2]
[335193542,1723968643470,-500.0,0.00018767,2]
[335193543,1723968643479,-500.0,0.00018767,2]
[335193544,1723968643488,-500.0,0.00018767,2]
[335193545,1723968643498,-500.0,0.00018767,2]
[335193546,1723968643507,-500.0,0.00018767,2]
[335193547,1723968643517,-508.5380433,0.00018767,2]
[335193548,1723968643526,-504.28874436,0.00018767,2]
[335193549,1723968643535,-500.0,0.00018767,2]
[335193550,1723968643545,-501.15990719,0.00018767,2]
[335193551,1723968643554,-500.0,0.00018767,2]
[335193552,1723968643563,-500.0,0.00018767,2]
[335193553,1723968643573,-513.76259266,0.00018767,2]
[335193554,1723968643582,-210.28986932,0.00018767,2]
[335193555,1723968643591,-513.94036456,0.00018767,2]
[335193556,1723968643601,-500.0,0.00018767,2]
[335193557,1723968643611,-500.0,0.00018767,2]
[335193558,1723968643621,-500.0,0.00018767,2]
[335193559,1723968643630,-469.84670545,0.00018767,2]
[335193560,1723968643640,-509.86420055,0.00018767,2]
[335193561,1723968643649,-500.0,0.00018767,2]
[335193562,1723968643658,-261.95080758,0.00018767,2]
[335193563,1723968643667,-500.0,0.00018767,2]
[335193564,1723968643677,-513.1321398,0.00018767,2]
[335193565,1723968643686,-530.88077677,0.00018767,2]
[335193566,1723968643695,-503.5388865,0.00018767,2]
[335193567,1723968643704,-549.38946756,0.00018767,2]
[335193568,1723968643713,-500.0,0.00018767,2]
[335193569,1723968643723,-500.0,0.00018767,2]
[335193570,1723968643732,-511.01685736,0.00018767,2]
[335193571,1723968643741,-503.1800564,0.00018767,2]
[335193572,1723968643750,-500.0,0.00018767,2]
[335193573,1723968643759,-509.8537679,0.00018767,2]
[335193574,1723968643769,-500.0,0.00018767,2]
[335193575,1723968643778,-636.84387548,0.00018767,2]
[335193576,1723968643788,-504.84887392,0.00018767,2]
[335193577,1723968643797,-500.0,0.00018767,2]
[335193578,1723968643806,-500.0,0.00018767,2]
[335193579,1723968643815,-500.0,0.00018767,2]
[335193580,1723968643825,-500.0,0.00018767,2]
[335193581,1723968643834,-507.46129466,0.00018767,2]
[335193582,1723968643843,-502.12097442,0.00018767,2]
[335193583,1723968643853,-500.0,0.00018767,2]
[335193584,1723968643862,-500.0,0.00018767,2]
[335193585,1723968643871,-514.57750072,0.00018767,2]
[335193586,1723968643881,-500.0,0.00018767,2]
[335193587,1723968643890,-500.0,0.00018767,2]
[335193588,1723968643899,-500.0,0.00018767,2]
[335193589,1723968643908,-962.99,0.00018767,2]
[335193590,1723968643918,-511.28577531,0.00018767,2]
[335193591,1723968643927,-500.0,0.00018767,2]
[335193592,1723968643937,-512.46796529,0.00018767,2]
[335193593,1723968643946,-500.0,0.00018767,2]
[335193594,1723968643955,-500.0,0.00018767,2]
[335193595,1723968643964,-500.0,0.00018767,2]
[335193596,1723968643979,-500.0,0.00018767,2]
[335193597,1723968643988,-379.65994937,0.00018767,2]
[335193598,1723968643997,-501.3766439,0.00018767,2]
[335193599,1723968644006,-500.0,0.00018767,2]
[335193600,1723968644015,-511.64760546,0.00018767,2]
[335193601,1723968644025,-521.75951476,0.00018767,2]
[335193602,1723968644034,-500.0,0.00018767,2]
[335193603,1723968644044,-500.0,0.00018767,2]
[335193604,1723968644055,-500.0,0.00018767,2]
[335193605,1723968644065,-528.17646954,0.00018767,2]
[335193606,1723968644074,-508.26415308,0.00018767,2]
[335193607,1723968644083,-854.76,0.00018767,2]
[335193608,1723968644093,-500.0,0.00018767,2]
[335193609,1723968644102,-500.0,0.00018767,2]
[335193610,1723968644112,-500.0,0.00018767,2]
[335193611,1723968644121,-500.0,0.00018767,2]
[335193612,1723968644131,-500.0,0.00018767,2]
[335193613,1723968644141,-501.5510116,0.00018767,2]
[335193614,1723968644151,-500.0,0.00018767,2]
[335193615,1723968644160,-500.0,0.00018767,2]
[335193616,1723968644170,-511.69770643,0.00018767,2]
[335193617,1723968644179,-500.0,0.00018767,2]
[335193618,1723968644189,-500.0,0.00018767,2]
[335193619,1723968644198,-500.0,0.00018767,2]
[335193620,1723968644208,-500.0,0.00018767,2]
[335193621,1723968644217,-500.0,0.00018767,2]
[335193622,1723968644227,-508.99906591,0.00018767,2]
[335193623,1723968644236,-500.0,0.00018767,2]
[335193624,1723968644246,-500.0,0.00018767,2]
[335193625,1723968644255,-500.0,0.00018767,2]
[335193626,1723968644264,-432.03554059,0.00018767,2]
[335193627,1723968644274,-511.91346403,0.00018767,2]
[335193628,1723968644284,-168.29605304,0.00018767,2]
[335193629,1723968644293,-500.0,0.00018767,2]
[335193630,1723968644303,-500.0,0.00018767,2]
[335193631,1723968644312,-500.0,0.00018767,2]
[335193632,1723968644322,-507.80802781,0.00018767,2]
[335193633,1723968644331,-823.57,0.00018767,2]
[335193634,1723968644340,-504.41,0.00018767,2]
[335193635,1723968644349,-640.17,0.00018767,2]
[335193636,1723968644359,-500.0,0.00018767,2]
[335193637,1723968644368,-500.0,0.00018767,2]
[335193638,1723968644378,-500.0,0.00018767,2]
[335193639,1723968644388,-500.0,0.00018767,2]
[335193640,1723968644397,-500.0,0.00018767,2]
[335193641,1723968644407,-612.12252098,0.00018767,2]
[335193642,1723968644416,-500.0,0.00018767,2]
[335193643,1723968644425,-573.79733495,0.00018767,2]
[335193644,1723968644435,-152.69201869,0.00018767,2]
[335193645,1723968644445,-500.0,0.00018767,2]
[335193646,1723968644454,-500.0,0.00018767,2]
[335193647,1723968644464,-500.0,0.00018767,2]
[335193648,1723968644473,-553.54699644,0.00018767,2]
[335193649,1723968644483,-500.0,0.00018767,2]
[335193650,1723968644492,-841.5,0.00018767,2]
[335193651,1723968644501,-500.0,0.00018767,2]
[335193652,1723968644511,-500.0,0.00018767,2]
[335193653,1723968644520,-500.0,0.00018767,2]
[335193654,1723968644529,-500.0,0.00018767,2]
[335193655,1723968644538,-500.0,0.00018767,2]
[335193656,1723968644548,-629.89,0.00018767,2]
[335193657,1723968644557,-359.85401445,0.00018767,2]
[335193658,1723968644567,-578.38,0.00018767,2]
[335193659,1723968644576,-500.0,0.00018767,2]
[335193660,1723968644684,-500.0,0.00018767,2]
[335193661,1723968644693,-500.0,0.00018767,2]
[335193662,1723968644702,-500.0,0.00018767,2]
[335193663,1723968644711,-500.0,0.00018767,2]
[335193664,1723968644722,-500.0,0.00018767,2]
[335193665,1723968644732,-500.0,0.00018767,2]
[335193666,1723968644742,-500.0,0.00018767,2]
[335193667,1723968644751,-500.0,0.00018767,2]
[335193668,1723968644761,-500.0,0.00018767,2]
[335193669,1723968644770,-521.64609183,0.00018767,2]
[335193670,1723968644779,-500.0,0.00018767,2]
[335193671,1723968644788,-500.0,0.00018767,2]
[335193672,1723968644798,-853.23,0.00018767,2]
[335193673,1723968644807,-500.0,0.00018767,2]
[335193674,1723968644816,-779.03,0.00018767,2]
[335193675,1723968644825,-519.3786446,0.00018767,2]